fUST/lending_fUST_20250522
["ID","MTS","AMOUNT","RATE_DAILY","PERIOD"]
[361959322,1747909848300,-676.3,0.00022465,2]
[361959324,1747909848310,-430.0,0.00022465,2]
[361959326,1747909848319,-612.3,0.00022465,2]
[361959328,1747909848328,-655.62,0.00022465,2]
[361959330,1747909848338,-450.0,0.00022465,2]
[361959332,1747909848348,-430.0,0.00022465,2]
[361959334,1747909848358,-430.0,0.00022465,2]
[361959337,1747909848368,-430.0,0.00022465,2]
[361959339,1747909848378,-430.0,0.00022465,2]
[361959341,1747909848388,-532.14,0.00022465,2]
[361959343,1747909848398,-430.0,0.00022465,2]
[361959345,1747909848408,-430.0,0.00022465,2]
[361959347,1747909848417,-567.86,0.00022465,2]
[361959349,1747909848427,-493.84,0.00022465,2]
[361959351,1747909848437,-1521.3,0.00022465,2]
[361959353,1747909848446,-3958.86,0.00022465,2]
[361959355,1747909848455,-430.0,0.00022465,2]
[361959357,1747909848464,-759.19,0.00022465,2]
[361959359,1747909848473,-430.0,0.00022465,2]
[361959361,1747909848483,-430.0,0.00022465,2]
[361959363,1747909848494,-430.0,0.00022465,2]
[361959365,1747909848503,-430.0,0.00022465,2]
[361959367,1747909848512,-430.0,0.00022465,2]
[361959369,1747909848523,-430.0,0.00022465,2]
[361959371,1747909848533,-1137.19,0.00022465,2]
[361959373,1747909848544,-430.0,0.00022465,2]
[361959375,1747909848555,-613.6,0.00022465,2]
[361959377,1747909848566,-430.0,0.00022465,2]
[361959379,1747909848577,-430.0,0.00022465,2]
[361959381,1747909848588,-430.0,0.00022465,2]
[361959383,1747909848598,-430.0,0.00022465,2]
[361959385,1747909848607,-430.0,0.00022465,2]
[361959387,1747909848618,-596.62,0.00022465,2]
[361959389,1747909848629,-430.0,0.00022465,2]
[361959391,1747909848639,-430.0,0.00022465,2]
[361959394,1747909848650,-430.0,0.00022465,2]
[361959396,1747909848660,-430.0,0.00022465,2]
[361959398,1747909848670,-430.0,0.00022465,2]
[361959399,1747909848680,-1354.02,0.00022465,2]
[361959401,1747909848693,-430.0,0.00022465,2]
[361959403,1747909848707,-1502.46,0.00022465,2]
[361959406,1747909848718,-430.0,0.00022465,2]
[361959414,1747909848827,-547.25566605,0.00022465,2]
[361959415,1747909848839,-430.0,0.00022465,2]
[361959416,1747909848848,-430.0,0.00022465,2]
[361959418,1747909848859,-638.77,0.00022465,2]
[361959420,1747909848869,-2557.24,0.00022465,2]
[361959422,1747909848879,-430.0,0.00022465,2]
[361959424,1747909848890,-576.6,0.00022465,2]
[361959426,1747909848900,-430.0,0.00022465,2]
[361959428,1747909848910,-430.0,0.00022465,2]
[361959431,1747909848919,-430.0,0.00022465,2]
[361959433,1747909848929,-430.0,0.00022465,2]
[361959435,1747909848939,-430.0,0.00022465,2]
[361959437,1747909848948,-450.0,0.00022465,2]
[361959439,1747909848957,-430.0,0.00022465,2]
[361959441,1747909848967,-430.0,0.00022465,2]
[361959442,1747909848976,-1317.54,0.00022465,2]
[361959445,1747909848985,-644.46,0.00022465,2]
[361959447,1747909848995,-430.0,0.00022465,2]
[361959449,1747909849004,-542.45,0.00022465,2]
[361959451,1747909849014,-450.0,0.00022465,2]
[361959453,1747909849023,-328.77149452,0.00022465,2]
[361959455,1747909849032,-450.0,0.00022465,2]
[361959457,1747909849041,-430.0,0.00022465,2]
[361959459,1747909849052,-855.89,0.00022465,2]
[361959461,1747909849062,-430.0,0.00022465,2]
[361959463,1747909849072,-430.0,0.00022465,2]
[361959465,1747909849081,-430.0,0.00022465,2]
[361959467,1747909849091,-430.0,0.00022465,2]
[361959468,1747909849101,-430.0,0.00022465,2]
[361959470,1747909849110,-430.0,0.00022465,2]
[361959473,1747909849120,-430.0,0.00022465,2]
[361959475,1747909849129,-1023.55,0.00022465,2]
[361959477,1747909849139,-430.0,0.00022465,2]
[361959479,1747909849149,-369.33160456,0.00022465,2]
[361959481,1747909849159,-430.0,0.00022465,2]
[361959482,1747909849168,-973.79,0.00022465,2]
[361959484,1747909849178,-534.29,0.00022465,2]
[361959487,1747909849189,-430.0,0.00022465,2]
[361959489,1747909849199,-508.61,0.00022465,2]
[361959491,1747909849208,-2349.73,0.00022465,2]
[361959492,1747909849218,-430.0,0.00022465,2]
[361959494,1747909849227,-400.0,0.00022465,2]
[361959496,1747909849237,-561.89,0.00022465,2]
[361959498,1747909849247,-3807.03,0.00022465,2]
[361959501,1747909849257,-430.0,0.00022465,2]
[361959503,1747909849266,-445.0,0.00022465,2]
[361959505,1747909849276,-784.72,0.00022465,2]
[361959507,1747909849286,-934.38,0.00022465,2]
[361959509,1747909849296,-430.0,0.00022465,2]
[361959511,1747909849305,-1420.53,0.00022465,2]
[361959513,1747909849315,-430.0,0.00022465,2]
[361959515,1747909849325,-430.0,0.00022465,2]
[361959517,1747909849334,-430.0,0.00022465,2]
[361959519,1747909849344,-430.0,0.00022465,2]
[361959521,1747909849353,-430.0,0.00022465,2]
[361959523,1747909849362,-430.0,0.00022465,2]
[361959525,1747909849372,-430.0,0.00022465,2]
[361959527,1747909849382,-430.0,0.00022465,2]
[361959529,1747909849391,-544.63,0.00022465,2]
[361959531,1747909849402,-732.09,0.00022465,2]
[361959533,1747909849412,-430.0,0.00022465,2]
[361959535,1747909849422,-430.0,0.00022465,2]
[361959537,1747909849431,-1194.49,0.00022465,2]
[361959539,1747909849440,-605.16,0.00022465,2]
[361959541,1747909849450,-503.02,0.00022465,2]
[361959543,1747909849460,-845.95,0.00022465,2]
[361959545,1747909849469,-430.0,0.00022465,2]
[361959547,1747909849479,-430.0,0.00022465,2]
[361959549,1747909849488,-430.0,0.00022465,2]
[361959551,1747909849499,-430.0,0.00022465,2]
[361959553,1747909849509,-430.0,0.00022465,2]
[361959555,1747909849518,-430.0,0.00022465,2]
[361959557,1747909849527,-474.23,0.00022465,2]
[361959559,1747909849537,-430.0,0.00022465,2]
[361959561,1747909849547,-430.0,0.00022465,2]
[361959563,1747909849556,-430.0,0.00022465,2]
[361959565,1747909849566,-430.0,0.00022465,2]
[361959567,1747909849576,-176.56778235,0.00022512,2]
[361959569,1747909849586,-500.0,0.00022521,2]
[361959571,1747909849595,-500.0,0.00022521,2]
[361959573,1747909849605,-926.88053677,0.00022521,7]
[361959575,1747909849615,-500.98959904,0.00022538,2]
[361959577,1747909849624,-1002.90297425,0.00022542,2]
[361959580,1747909849634,-587.0,0.00022572,2]
[361959582,1747909849644,-587.0,0.00022573,2]
[361959584,1747909849654,-587.0,0.00022573,2]
[361959586,1747909849663,-501.15125743,0.00022598,2]
[361959588,1747909849672,-21372.24382361,0.000226,7]
[361959590,1747909849682,-926.88053677,0.00022624,7]
[361959592,1747909849692,-500.0,0.00022639,2]
[361959594,1747909849704,-926.88053677,0.00022728,7]
[361959596,1747909849714,-500.0,0.00022738,2]
[361959598,1747909849724,-430.0,0.00022739,2]
[361959600,1747909849734,-430.0,0.00022739,2]
[361959602,1747909849745,-430.0,0.00022739,2]
[361959604,1747909849755,-430.0,0.00022739,2]
[361959606,1747909849764,-430.0,0.00022739,2]
[361959608,1747909849773,-430.0,0.00022739,2]
[361959610,1747909849785,-430.0,0.00022739,2]
[361959613,1747909849797,-430.0,0.00022739,2]
[361959614,1747909849807,-430.0,0.00022739,2]
[361959617,1747909849817,-430.0,0.00022739,2]
[361959619,1747909849827,-430.0,0.00022739,2]
[361959621,1747909849837,-430.0,0.00022739,2]
[361959623,1747909849846,-430.0,0.00022739,2]
[361959625,1747909849856,-430.0,0.00022739,2]
[361959627,1747909849866,-430.0,0.00022739,2]
[361959629,1747909849875,-430.0,0.00022739,2]
[361959631,1747909849885,-430.0,0.00022739,2]
[361959633,1747909849900,-430.0,0.00022739,2]
[361959635,1747909849909,-430.0,0.00022739,2]
[361959637,1747909849918,-430.0,0.00022739,2]
[361959639,1747909849928,-430.0,0.00022739,2]
[361959641,1747909849938,-430.0,0.00022739,2]
[361959644,1747909849948,-430.0,0.00022739,2]
[361959645,1747909849958,-430.0,0.00022739,2]
[361959648,1747909849967,-430.0,0.00022739,2]
[361959650,1747909849977,-430.0,0.00022739,2]
[361959652,1747909849987,-831.1,0.00022739,2]
[361959654,1747909849997,-217.07765561,0.00022739,2]
[361959656,1747909850007,-430.0,0.00022739,2]
[361959658,1747909850016,-430.0,0.00022739,2]
[361959660,1747909850026,-430.0,0.00022739,2]
[361959662,1747909850035,-301.99,0.00022739,2]
[361959664,1747909850046,-565.22,0.00022739,2]
[361959666,1747909850056,-430.0,0.00022739,2]
[361959668,1747909850065,-430.0,0.00022739,2]
[361959670,1747909850074,-430.0,0.00022739,2]
[361959672,1747909850084,-430.0,0.00022739,2]
[361959674,1747909850094,-430.0,0.00022739,2]
[361959675,1747909850104,-430.0,0.00022739,2]
[361959678,1747909850114,-430.0,0.00022739,2]
[361959679,1747909850123,-430.0,0.00022739,2]
[361959682,1747909850133,-676.3,0.00022739,2]
[361959684,1747909850143,-430.0,0.00022739,2]
[361959686,1747909850153,-612.3,0.00022739,2]
[361959688,1747909850163,-655.62,0.00022739,2]
[361959690,1747909850172,-430.0,0.00022739,2]
[361959692,1747909850182,-430.0,0.00022739,2]
[361959694,1747909850192,-430.0,0.00022739,2]
[361959696,1747909850201,-430.0,0.00022739,2]
[361959698,1747909850211,-532.14,0.00022739,2]
[361959700,1747909850221,-430.0,0.00022739,2]
[361959702,1747909850230,-430.0,0.00022739,2]
[361959704,1747909850239,-567.86,0.00022739,2]
[361959706,1747909850248,-493.84,0.00022739,2]
[361959708,1747909850258,-3958.86,0.00022739,2]
[361959710,1747909850267,-1521.3,0.00022739,2]
[361959712,1747909850277,-430.0,0.00022739,2]
[361959714,1747909850286,-759.19,0.00022739,2]
[361959716,1747909850298,-430.0,0.00022739,2]
[361959718,1747909850308,-430.0,0.00022739,2]
[361959720,1747909850317,-430.0,0.00022739,2]
[361959722,1747909850327,-430.0,0.00022739,2]
[361959724,1747909850336,-430.0,0.00022739,2]
[361959726,1747909850347,-1137.19,0.00022739,2]
[361959728,1747909850357,-430.0,0.00022739,2]
[361959730,1747909850367,-613.6,0.00022739,2]
[361959732,1747909850376,-470.0,0.00022739,2]
[361959734,1747909850386,-430.0,0.00022739,2]
[361959736,1747909850396,-430.0,0.00022739,2]
[361959739,1747909850407,-430.0,0.00022739,2]
[361959741,1747909850418,-430.0,0.00022739,2]
[361959743,1747909850427,-596.62,0.00022739,2]
[361959745,1747909850436,-430.0,0.00022739,2]
[361959747,1747909850446,-430.0,0.00022739,2]
[361959749,1747909850455,-430.0,0.00022739,2]
[361959751,1747909850464,-547.09890554,0.00022739,2]
[361959753,1747909850473,-430.0,0.00022739,2]
[361959766,1747909850592,-1354.02,0.00022739,2]
[361959768,1747909850603,-430.0,0.00022739,2]
[361959770,1747909850613,-1502.46,0.00022739,2]
[361959772,1747909850623,-430.0,0.00022739,2]
[361959774,1747909850633,-430.0,0.00022739,2]
[361959776,1747909850643,-430.0,0.00022739,2]
[361959778,1747909850653,-638.77,0.00022739,2]
[361959780,1747909850663,-2557.24,0.00022739,2]
[361959782,1747909850673,-430.0,0.00022739,2]
[361959784,1747909850682,-576.6,0.00022739,2]
[361959786,1747909850693,-430.0,0.00022739,2]
[361959788,1747909850706,-430.0,0.00022739,2]
[361959790,1747909850715,-430.0,0.00022739,2]
[361959792,1747909850725,-430.0,0.00022739,2]
[361959794,1747909850734,-430.0,0.00022739,2]
[361959796,1747909850745,-1317.54,0.00022739,2]
[361959798,1747909850754,-644.46,0.00022739,2]
[361959800,1747909850764,-430.0,0.00022739,2]
[361959802,1747909850774,-542.45,0.00022739,2]
[361959804,1747909850784,-855.89,0.00022739,2]
[361959806,1747909850793,-430.0,0.00022739,2]
[361959808,1747909850804,-430.0,0.00022739,2]
[361959810,1747909850813,-430.0,0.00022739,2]
[361959812,1747909850824,-430.0,0.00022739,2]
[361959814,1747909850833,-430.0,0.00022739,2]
[361959816,1747909850843,-430.0,0.00022739,2]
[361959818,1747909850853,-430.0,0.00022739,2]
[361959820,1747909850862,-1023.55,0.00022739,2]
[361959822,1747909850871,-973.79,0.00022739,2]
[361959824,1747909850881,-430.0,0.00022739,2]
[361959827,1747909850891,-534.29,0.00022739,2]
[361959829,1747909850901,-508.61,0.00022739,2]
[361959831,1747909850914,-2349.73,0.00022739,2]
[361959833,1747909850924,-3807.03,0.00022739,2]
[361959835,1747909850934,-445.0,0.00022739,2]
[361959837,1747909850944,-784.72,0.00022739,2]
[361959839,1747909850954,-934.38,0.00022739,2]
[361959841,1747909850963,-1420.53,0.00022739,2]
[361959843,1747909850972,-430.0,0.00022739,2]
[361959845,1747909850981,-430.0,0.00022739,2]
[361959847,1747909850992,-430.0,0.00022739,2]
[361959849,1747909851002,-430.0,0.00022739,2]
[361959851,1747909851011,-544.63,0.00022739,2]
[361959853,1747909851020,-732.09,0.00022739,2]
[361959855,1747909851030,-430.0,0.00022739,2]
[361959857,1747909851039,-1194.49,0.00022739,2]
[361959859,1747909851050,-605.16,0.00022739,2]
[361959861,1747909851060,-503.02,0.00022739,2]
[361959863,1747909851069,-430.0,0.00022739,2]
[361959865,1747909851078,-845.95,0.00022739,2]
[361959867,1747909851088,-430.0,0.00022739,2]
[361959869,1747909851098,-430.0,0.00022739,2]
[361959871,1747909851108,-430.0,0.00022739,2]
[361959873,1747909851119,-430.0,0.00022739,2]
[361959875,1747909851130,-430.0,0.00022739,2]
[361959877,1747909851140,-474.23,0.00022739,2]
[361959879,1747909851150,-430.0,0.00022739,2]
[361959882,1747909851160,-606.74939614,0.00022791,2]
[361959884,1747909851170,-2351.0,0.00022793,2]
[361959886,1747909851180,-926.88053677,0.00022831,8]
[361959888,1747909851189,-1000.0,0.00022851,2]
[361959890,1747909851199,-926.88053677,0.00022934,8]
[361959892,1747909851208,-670.25748449,0.00022938,2]
[361959894,1747909851218,-228.0437,0.0002295,2]
[361959896,1747909851228,-5000.0,0.00022976,2]
[361959898,1747909851238,-500.0,0.00023,30]
[361959900,1747909851248,-500.0,0.00023,30]
[361959902,1747909851257,-528.21889417,0.00023,30]
[361959904,1747909851266,-500.0,0.00023,30]
[361959906,1747909851276,-504.10205209,0.00023,30]
[361959908,1747909851285,-304.0,0.00023,2]
[361959910,1747909851295,-430.0,0.00023013,2]
[361959912,1747909851304,-430.0,0.00023013,2]
[361959914,1747909851314,-430.0,0.00023013,2]
[361959916,1747909851323,-430.0,0.00023013,2]
[361959918,1747909851332,-430.0,0.00023013,2]
[361959920,1747909851343,-430.0,0.00023013,2]
[361959922,1747909851352,-430.0,0.00023013,2]
[361959924,1747909851362,-430.0,0.00023013,2]
[361959926,1747909851371,-430.0,0.00023013,2]
[361959928,1747909851380,-430.0,0.00023013,2]
[361959930,1747909851390,-490.0,0.00023013,2]
[361959932,1747909851400,-430.0,0.00023013,2]
[361959934,1747909851409,-430.0,0.00023013,2]
[361959936,1747909851419,-430.0,0.00023013,2]
[361959938,1747909851429,-430.0,0.00023013,2]
[361959940,1747909851438,-430.0,0.00023013,2]
[361959942,1747909851448,-430.0,0.00023013,2]
[361959944,1747909851458,-430.0,0.00023013,2]
[361959946,1747909851468,-430.0,0.00023013,2]
[361959948,1747909851478,-430.0,0.00023013,2]
[361959950,1747909851488,-430.0,0.00023013,2]
[361959952,1747909851498,-430.0,0.00023013,2]
[361959954,1747909851507,-430.0,0.00023013,2]
[361959957,1747909851517,-430.0,0.00023013,2]
[361959959,1747909851527,-430.0,0.00023013,2]
[361959961,1747909851536,-831.1,0.00023013,2]
[361959963,1747909851548,-430.0,0.00023013,2]
[361959965,1747909851557,-430.0,0.00023013,2]
[361959967,1747909851566,-430.0,0.00023013,2]
[361959969,1747909851576,-565.22,0.00023013,2]
[361959971,1747909851586,-430.0,0.00023013,2]
[361959973,1747909851596,-430.0,0.00023013,2]
[361959975,1747909851605,-430.0,0.00023013,2]
[361959977,1747909851615,-430.0,0.00023013,2]
[361959979,1747909851624,-430.0,0.00023013,2]
[361959981,1747909851633,-490.0,0.00023013,2]
[361959983,1747909851642,-430.0,0.00023013,2]
[361959985,1747909851652,-430.0,0.00023013,2]
[361959987,1747909851661,-676.3,0.00023013,2]
[361959989,1747909851671,-430.0,0.00023013,2]
[361959991,1747909851680,-612.3,0.00023013,2]
[361959993,1747909851689,-655.62,0.00023013,2]
[361959995,1747909851701,-430.0,0.00023013,2]
[361959997,1747909851710,-430.0,0.00023013,2]
[361959999,1747909851720,-430.0,0.00023013,2]
[361960001,1747909851731,-430.0,0.00023013,2]
[361960003,1747909851741,-532.14,0.00023013,2]
[361960005,1747909851750,-240.23548958,0.00023013,2]
[361960007,1747909851760,-430.0,0.00023013,2]
[361960009,1747909851769,-567.86,0.00023013,2]
[361960011,1747909851780,-493.84,0.00023013,2]
[361960013,1747909851790,-3958.86,0.00023013,2]
[361960015,1747909851801,-1521.3,0.00023013,2]
[361960017,1747909851811,-246.21019193,0.00023013,2]
[361960019,1747909851821,-759.19,0.00023013,2]
[361960021,1747909851831,-430.0,0.00023013,2]
[361960023,1747909851840,-430.0,0.00023013,2]
[361960025,1747909851850,-430.0,0.00023013,2]
[361960027,1747909851860,-490.0,0.00023013,2]
[361960029,1747909851869,-430.0,0.00023013,2]
[361960031,1747909851879,-1137.19,0.00023013,2]
[361960033,1747909851890,-430.0,0.00023013,2]
[361960035,1747909851899,-613.6,0.00023013,2]
[361960037,1747909851909,-430.0,0.00023013,2]
[361960039,1747909851918,-430.0,0.00023013,2]
[361960041,1747909851929,-430.0,0.00023013,2]
[361960043,1747909851938,-430.0,0.00023013,2]
[361960045,1747909851947,-596.62,0.00023013,2]
[361960047,1747909851957,-510.0,0.00023013,2]
[361960049,1747909851966,-430.0,0.00023013,2]
[361960051,1747909851975,-430.0,0.00023013,2]
[361960053,1747909851985,-430.0,0.00023013,2]
[361960056,1747909851995,-1354.02,0.00023013,2]
[361960058,1747909852004,-430.0,0.00023013,2]
[361960060,1747909852013,-1502.46,0.00023013,2]
[361960062,1747909852023,-430.0,0.00023013,2]
[361960064,1747909852032,-430.0,0.00023013,2]
[361960066,1747909852041,-430.0,0.00023013,2]
[361960068,1747909852051,-638.77,0.00023013,2]
[361960070,1747909852060,-2557.24,0.00023013,2]
[361960072,1747909852069,-430.0,0.00023013,2]
[361960074,1747909852078,-576.6,0.00023013,2]
[361960076,1747909852088,-430.0,0.00023013,2]
[361960078,1747909852097,-430.0,0.00023013,2]
[361960080,1747909852107,-430.0,0.00023013,2]
[361960093,1747909852222,-430.0,0.00023013,2]
[361960095,1747909852232,-430.0,0.00023013,2]
[361960097,1747909852242,-1317.54,0.00023013,2]
[361960099,1747909852251,-644.46,0.00023013,2]
[361960101,1747909852261,-430.0,0.00023013,2]
[361960103,1747909852270,-542.45,0.00023013,2]
[361960105,1747909852279,-430.0,0.00023013,2]
[361960108,1747909852289,-855.89,0.00023013,2]
[361960110,1747909852299,-430.0,0.00023013,2]
[361960112,1747909852309,-430.0,0.00023013,2]
[361960114,1747909852318,-430.0,0.00023013,2]
[361960115,1747909852327,-430.0,0.00023013,2]
[361960116,1747909852337,-430.0,0.00023013,2]
[361960117,1747909852346,-430.0,0.00023013,2]
[361960118,1747909852355,-1023.55,0.00023013,2]
[361960119,1747909852363,-49.38204096,0.00023013,2]
[361960130,1747909852557,-677.10053554,0.00023013,2]
[361960133,1747909852573,-247.3074235,0.00023013,2]
[361960135,1747909852583,-430.0,0.00023013,2]
[361960137,1747909852592,-534.29,0.00023013,2]
[361960139,1747909852602,-508.61,0.00023013,2]
[361960141,1747909852611,-2349.73,0.00023013,2]
[361960143,1747909852621,-3532.63087262,0.00023013,2]
[361960145,1747909852633,-274.39912738,0.00023013,2]
[361960147,1747909852642,-368.04769854,0.00023013,2]
[361960150,1747909852654,-76.95230146,0.00023013,2]
[361960152,1747909852663,-784.72,0.00023013,2]
[361960154,1747909852673,-934.38,0.00023013,2]
[361960156,1747909852683,-1420.53,0.00023013,2]
[361960158,1747909852693,-430.0,0.00023013,2]
[361960160,1747909852707,-430.0,0.00023013,2]
[361960162,1747909852716,-430.0,0.00023013,2]
[361960164,1747909852726,-430.0,0.00023013,2]
[361960166,1747909852736,-544.63,0.00023013,2]
[361960168,1747909852746,-732.09,0.00023013,2]
[361960170,1747909852756,-160.0,0.00023013,2]
[361960171,1747909852765,-1194.49,0.00023013,2]
[361960173,1747909852775,-605.16,0.00023013,2]
[361960175,1747909852784,-503.02,0.00023013,2]
[361960177,1747909852794,-231.64867086,0.00023013,2]
[361960180,1747909852807,-198.35132914,0.00023013,2]
[361960182,1747909852817,-845.95,0.00023013,2]
[361960184,1747909852826,-430.0,0.00023013,2]
[361960185,1747909852836,-430.0,0.00023013,2]
[361960187,1747909852845,-430.0,0.00023013,2]
[361960189,1747909852855,-430.0,0.00023013,2]
[361960191,1747909852865,-430.0,0.00023013,2]
[361960193,1747909852875,-474.23,0.00023013,2]
[361960195,1747909852884,-430.0,0.00023013,2]
[361960197,1747909852894,-926.88053677,0.00023038,8]
[361960199,1747909852904,-926.88053677,0.00023141,8]
[361960201,1747909852914,-176.56778235,0.00023206,2]
[361960203,1747909852923,-926.88053677,0.00023245,8]
[361960205,1747909852933,-500.0,0.00023286,2]
[361960207,1747909852942,-430.0,0.00023287,2]
[361960209,1747909852952,-430.0,0.00023287,2]
[361960211,1747909852962,-430.0,0.00023287,2]
[361960213,1747909852971,-430.0,0.00023287,2]
[361960215,1747909852981,-430.0,0.00023287,2]
[361960217,1747909852992,-430.0,0.00023287,2]
[361960219,1747909853002,-430.0,0.00023287,2]
[361960221,1747909853012,-430.0,0.00023287,2]
[361960223,1747909853022,-365.69398668,0.00023287,2]
[361960225,1747909853032,-430.0,0.00023287,2]
[361960227,1747909853041,-430.0,0.00023287,2]
[361960229,1747909853052,-430.0,0.00023287,2]
[361960231,1747909853061,-430.0,0.00023287,2]
[361960233,1747909853071,-430.0,0.00023287,2]
[361960235,1747909853080,-430.0,0.00023287,2]
[361960237,1747909853090,-430.0,0.00023287,2]
[361960239,1747909853100,-430.0,0.00023287,2]
[361960241,1747909853110,-430.0,0.00023287,2]
[361960243,1747909853120,-430.0,0.00023287,2]
[361960245,1747909853130,-430.0,0.00023287,2]
[361960247,1747909853139,-430.0,0.00023287,2]
[361960249,1747909853150,-430.0,0.00023287,2]
[361960251,1747909853159,-430.0,0.00023287,2]
[361960253,1747909853169,-430.0,0.00023287,2]
[361960255,1747909853179,-831.1,0.00023287,2]
[361960257,1747909853188,-430.0,0.00023287,2]
[361960259,1747909853199,-430.0,0.00023287,2]
[361960261,1747909853209,-430.0,0.00023287,2]
[361960263,1747909853219,-565.22,0.00023287,2]
[361960265,1747909853228,-430.0,0.00023287,2]
[361960267,1747909853238,-430.0,0.00023287,2]
[361960269,1747909853248,-430.0,0.00023287,2]
[361960271,1747909853257,-430.0,0.00023287,2]
[361960273,1747909853267,-430.0,0.00023287,2]
[361960275,1747909853276,-430.0,0.00023287,2]
[361960277,1747909853286,-430.0,0.00023287,2]
[361960278,1747909853295,-676.3,0.00023287,2]
[361960280,1747909853307,-430.0,0.00023287,2]
[361960282,1747909853316,-612.3,0.00023287,2]
[361960284,1747909853326,-655.62,0.00023287,2]
[361960286,1747909853336,-430.0,0.00023287,2]
[361960288,1747909853346,-430.0,0.00023287,2]
[361960290,1747909853356,-430.0,0.00023287,2]
[361960292,1747909853365,-430.0,0.00023287,2]
[361960294,1747909853374,-3830.21,0.00023287,2]
[361960296,1747909853383,-532.14,0.00023287,2]
[361960298,1747909853393,-430.0,0.00023287,2]
[361960300,1747909853403,-567.86,0.00023287,2]
[361960302,1747909853412,-493.84,0.00023287,2]
[361960316,1747909853539,-3958.86,0.00023287,2]
[361960318,1747909853550,-1521.3,0.00023287,2]
[361960320,1747909853560,-759.19,0.00023287,2]
[361960322,1747909853570,-430.0,0.00023287,2]
[361960324,1747909853579,-430.0,0.00023287,2]
[361960326,1747909853589,-430.0,0.00023287,2]
[361960328,1747909853598,-430.0,0.00023287,2]
[361960330,1747909853608,-1137.19,0.00023287,2]
[361960332,1747909853617,-430.0,0.00023287,2]
[361960334,1747909853627,-613.6,0.00023287,2]
[361960336,1747909853637,-430.0,0.00023287,2]
[361960338,1747909853647,-430.0,0.00023287,2]
[361960340,1747909853657,-430.0,0.00023287,2]
[361960342,1747909853667,-430.0,0.00023287,2]
[361960344,1747909853676,-596.62,0.00023287,2]
[361960346,1747909853686,-430.0,0.00023287,2]
[361960348,1747909853697,-430.0,0.00023287,2]
[361960350,1747909853708,-430.0,0.00023287,2]
[361960352,1747909853718,-1354.02,0.00023287,2]
[361960354,1747909853728,-430.0,0.00023287,2]
[361960356,1747909853739,-653.20508374,0.00023287,2]
[361960371,1747909853884,-430.0,0.00021917,2]
[361960373,1747909853894,-342.95025982,0.00021917,2]
[361960375,1747909853903,-430.0,0.00021917,2]
[361960377,1747909853914,-430.0,0.00022191,2]
[361960379,1747909853923,-849.25491626,0.00023287,2]
[361960381,1747909853933,-430.0,0.00023287,2]
[361960383,1747909853943,-430.0,0.00023287,2]
[361960385,1747909853953,-430.0,0.00023287,2]
[361960388,1747909853963,-638.77,0.00023287,2]